[Event "*** Titled Tuesday Blitz AM"]
[Site "Chess.com"]
[Date "2020.01.07"]
[Round "7"]
[White "Last7Samurai"]
[Black "DanielNaroditsky"]
[Result "0-1"]
[WhiteElo "2823"]
[BlackElo "3081"]
[TimeControl "180+2"]
[EndTime "10:34:58 PST"]
[Termination "DanielNaroditsky won by resignation"]

1. d4 {[%clk 0:03:01.9]} 1... Nf6 {[%clk 0:03:00.1]} 2. Bg5 {[%clk 0:03:02.6]}
2... Ne4 {[%clk 0:03:00.5]} 3. h4 {[%clk 0:03:03.7]} 3... d5 {[%clk 0:02:58.6]}
4. Nd2 {[%clk 0:03:04.1]} 4... Nf6 {[%clk 0:03:00.1]} 5. e3 {[%clk 0:02:59.5]}
5... c5 {[%clk 0:03:00]} 6. c3 {[%clk 0:02:59]} 6... Nbd7 {[%clk 0:02:56.2]} 7.
Ngf3 {[%clk 0:02:59.4]} 7... e6 {[%clk 0:02:55.8]} 8. Bd3 {[%clk 0:02:59.3]}
8... Bd6 {[%clk 0:02:56.2]} 9. e4 {[%clk 0:02:56.6]} 9... dxe4 {[%clk
0:02:40.7]} 10. Nxe4 {[%clk 0:02:58.5]} 10... Be7 {[%clk 0:02:41.7]} 11. Bxf6
{[%clk 0:02:56.9]} 11... gxf6 {[%clk 0:02:38.9]} 12. Qe2 {[%clk 0:02:56.3]}
12... Qc7 {[%clk 0:02:26.8]} 13. O-O-O {[%clk 0:02:55.8]} 13... cxd4 {[%clk
0:02:22.2]} 14. Nxd4 {[%clk 0:02:56.2]} 14... a6 {[%clk 0:02:23.9]} 15. Kb1
{[%clk 0:02:56.3]} 15... Ne5 {[%clk 0:02:22.5]} 16. Bc2 {[%clk 0:02:53.4]} 16...
Bd7 {[%clk 0:02:23.4]} 17. f4 {[%clk 0:02:49.9]} 17... Nc6 {[%clk 0:02:24.6]}
18. f5 {[%clk 0:02:48.2]} 18... O-O-O {[%clk 0:02:08]} 19. fxe6 {[%clk
0:02:45.4]} 19... fxe6 {[%clk 0:02:09.1]} 20. Bb3 {[%clk 0:02:46.6]} 20... Nxd4
{[%clk 0:01:57.8]} 21. Rxd4 {[%clk 0:02:48.5]} 21... Kb8 {[%clk 0:01:59.1]} 22.
Rhd1 {[%clk 0:02:48.3]} 22... Bc8 {[%clk 0:02:00.3]} 23. Rxd8 {[%clk 0:02:29.3]}
23... Rxd8 {[%clk 0:02:02.2]} 24. Rxd8 {[%clk 0:02:30.6]} 24... Qxd8 {[%clk
0:01:58.5]} 25. Nd2 {[%clk 0:02:31.9]} 25... Qb6 {[%clk 0:01:50.9]} 26. Nf3
{[%clk 0:02:30.4]} 26... e5 {[%clk 0:01:34.9]} 27. Bc2 {[%clk 0:02:31.1]} 27...
h5 {[%clk 0:01:28.7]} 28. Bd3 {[%clk 0:02:12.9]} 28... Bg4 {[%clk 0:01:28.3]}
29. Kc2 {[%clk 0:02:11.2]} 29... Qa5 {[%clk 0:01:23]} 30. Kb1 {[%clk 0:02:11.7]}
30... Bd6 {[%clk 0:01:16.5]} 31. Qe3 {[%clk 0:02:09]} 31... f5 {[%clk
0:01:13.5]} 32. Qh6 {[%clk 0:02:07.2]} 32... Qd8 {[%clk 0:01:06.2]} 33. Bc2
{[%clk 0:01:55.1]} 33... Bc7 {[%clk 0:01:01.9]} 34. a4 {[%clk 0:01:52.8]} 34...
Qe7 {[%clk 0:00:33.3]} 35. Ng5 {[%clk 0:01:31.8]} 35... e4 {[%clk 0:00:32.6]}
36. Ne6 {[%clk 0:01:33]} 36... Bb6 {[%clk 0:00:28]} 37. Nf4 {[%clk 0:01:27.1]}
37... Qd8 {[%clk 0:00:21.6]} 38. Qg7 {[%clk 0:00:50.5]} 38... e3 {[%clk
0:00:19.1]} 39. Qe5+ {[%clk 0:00:51.4]} 39... Qc7 {[%clk 0:00:17.2]} 40. Qe8+
{[%clk 0:00:49.2]} 40... Ka7 {[%clk 0:00:18.3]} 41. Nd5 {[%clk 0:00:48.6]} 41...
Qc6 {[%clk 0:00:11.7]} 42. Qe5 {[%clk 0:00:34.1]} 42... Qxd5 {[%clk 0:00:05.1]}
43. Qxd5 {[%clk 0:00:31.9]} 43... e2 {[%clk 0:00:06.7]} 44. Qe5 {[%clk
0:00:07.6]} 44... Bf2 {[%clk 0:00:07.3]} 45. Qxe2 {[%clk 0:00:08.4]} 45... Bxe2
{[%clk 0:00:08.2]} 46. Bxf5 {[%clk 0:00:10.1]} 46... Bxh4 {[%clk 0:00:09.1]} 0-1

[Event "*** Titled Tuesday Blitz AM"]
[Site "Chess.com"]
[Date "2020.01.07"]
[Round "7"]
[White "MixMasterChess"]
[Black "FearlessKing64"]
[Result "0-1"]
[WhiteElo "2131"]
[BlackElo "2350"]
[TimeControl "180+2"]
[EndTime "10:34:59 PST"]
[Termination "FearlessKing64 won by resignation"]

1. Nf3 {[%clk 0:03:01.9]} 1... Nf6 {[%clk 0:03:00.1]} 2. c4 {[%clk 0:03:02.1]}
2... c5 {[%clk 0:03:01.9]} 3. Nc3 {[%clk 0:03:02.8]} 3... d5 {[%clk 0:03:03.2]}
4. cxd5 {[%clk 0:03:03.6]} 4... Nxd5 {[%clk 0:03:05.1]} 5. e4 {[%clk 0:03:04.9]}
5... Nb4 {[%clk 0:03:05.7]} 6. Bc4 {[%clk 0:03:05.9]} 6... Nd3+ {[%clk 0:03:06]}
7. Ke2 {[%clk 0:03:07.1]} 7... Nf4+ {[%clk 0:03:07.5]} 8. Kf1 {[%clk 0:03:08.7]}
8... Ne6 {[%clk 0:03:08.8]} 9. b4 {[%clk 0:03:09.6]} 9... cxb4 {[%clk
0:02:55.5]} 10. Ne2 {[%clk 0:03:10.1]} 10... Nc7 {[%clk 0:02:49.3]} 11. d4
{[%clk 0:03:10.1]} 11... e6 {[%clk 0:02:50.4]} 12. h4 {[%clk 0:03:08.5]} 12...
Be7 {[%clk 0:02:48.9]} 13. Bb2 {[%clk 0:03:07.5]} 13... b5 {[%clk 0:02:43.8]}
14. Bd3 {[%clk 0:02:59.6]} 14... a5 {[%clk 0:02:44.5]} 15. Ne5 {[%clk
0:02:53.8]} 15... Bb7 {[%clk 0:02:37.9]} 16. h5 {[%clk 0:02:51]} 16... h6 {[%clk
0:02:37.9]} 17. Rc1 {[%clk 0:02:50.9]} 17... Nd7 {[%clk 0:02:24.1]} 18. Nf3
{[%clk 0:02:31.9]} 18... Nf6 {[%clk 0:02:10.5]} 19. Ng3 {[%clk 0:02:32.2]} 19...
Rc8 {[%clk 0:02:08.1]} 20. Qe2 {[%clk 0:02:24.8]} 20... O-O {[%clk 0:02:02.1]}
21. Kg1 {[%clk 0:02:07.2]} 21... a4 {[%clk 0:01:35.1]} 22. Kh2 {[%clk
0:01:47.3]} 22... a3 {[%clk 0:01:18.3]} 23. Ba1 {[%clk 0:01:46.7]} 23... b3
{[%clk 0:01:17.4]} 24. axb3 {[%clk 0:01:45.3]} 24... b4 {[%clk 0:01:18.9]} 25.
Ne5 {[%clk 0:01:43.7]} 25... Nd7 {[%clk 0:01:13]} 26. Nc6 {[%clk 0:01:34.4]}
26... Bxc6 {[%clk 0:01:14]} 27. Rxc6 {[%clk 0:01:35.3]} 27... e5 {[%clk
0:01:10.3]} 28. dxe5 {[%clk 0:01:29]} 28... Nc5 {[%clk 0:01:07.9]} 29. Bc4
{[%clk 0:01:15.3]} 29... N7e6 {[%clk 0:01:06.2]} 30. Rxc8 {[%clk 0:01:09.7]}
30... Qxc8 {[%clk 0:01:00.4]} 31. Nf5 {[%clk 0:01:10.8]} 31... Bg5 {[%clk
0:00:51.2]} 32. Qe1 {[%clk 0:01:00.7]} 32... Qc6 {[%clk 0:00:45.1]} 33. f3
{[%clk 0:00:50.8]} 33... Rd8 {[%clk 0:00:23.1]} 34. Qxb4 {[%clk 0:00:49.9]}
34... a2 {[%clk 0:00:22.1]} 35. Re1 {[%clk 0:00:44]} 35... Bf4+ {[%clk
0:00:20.5]} 36. g3 {[%clk 0:00:42.6]} 36... Bg5 {[%clk 0:00:21.3]} 37. f4 {[%clk
0:00:41.3]} 37... Nxf4 {[%clk 0:00:22.6]} 38. gxf4 {[%clk 0:00:40.3]} 38...
Bxf4+ {[%clk 0:00:23.7]} 39. Kh3 {[%clk 0:00:41.3]} 39... Re8 {[%clk 0:00:18.3]}
40. Bxf7+ {[%clk 0:00:35.3]} 40... Kxf7 {[%clk 0:00:15.8]} 41. Nd6+ {[%clk
0:00:35.9]} 41... Ke7 {[%clk 0:00:12.7]} 42. Nxe8 {[%clk 0:00:33.2]} 42... Kxe8
{[%clk 0:00:09.7]} 43. Kg4 {[%clk 0:00:32.7]} 43... Qe6+ {[%clk 0:00:07.4]} 44.
Kxf4 {[%clk 0:00:30.8]} 44... Nd3+ {[%clk 0:00:08.7]} 0-1

[Event "*** Titled Tuesday Blitz AM"]
[Site "Chess.com"]
[Date "2020.01.07"]
[Round "7"]
[White "IwkooO"]
[Black "Megagigahiper3345"]
[Result "0-1"]
[WhiteElo "2553"]
[BlackElo "2450"]
[TimeControl "180+2"]
[EndTime "10:35:08 PST"]
[Termination "Megagigahiper3345 won by checkmate"]

1. c4 {[%clk 0:03:01.7]} 1... f5 {[%clk 0:02:53.6]} 2. d4 {[%clk 0:02:51.5]}
2... e6 {[%clk 0:02:53.7]} 3. Nc3 {[%clk 0:02:52.3]} 3... Nf6 {[%clk 0:02:54.1]}
4. Bg5 {[%clk 0:02:53.7]} 4... Bb4 {[%clk 0:02:55]} 5. Nf3 {[%clk 0:02:51.8]}
5... Bxc3+ {[%clk 0:02:55.5]} 6. bxc3 {[%clk 0:02:52.9]} 6... O-O {[%clk
0:02:57.4]} 7. e3 {[%clk 0:02:54.3]} 7... d6 {[%clk 0:02:54.9]} 8. Bd3 {[%clk
0:02:54.1]} 8... Qe7 {[%clk 0:02:52.7]} 9. O-O {[%clk 0:02:54.9]} 9... e5 {[%clk
0:02:54]} 10. c5 {[%clk 0:02:38.7]} 10... e4 {[%clk 0:02:48.1]} 11. Bc4+ {[%clk
0:02:39.7]} 11... Kh8 {[%clk 0:02:49.1]} 12. cxd6 {[%clk 0:02:37.7]} 12... cxd6
{[%clk 0:02:49.8]} 13. Nd2 {[%clk 0:02:37.7]} 13... Be6 {[%clk 0:02:39.9]} 14.
Qb3 {[%clk 0:02:33.6]} 14... Bxc4 {[%clk 0:02:36.1]} 15. Nxc4 {[%clk 0:02:35.5]}
15... Nc6 {[%clk 0:02:33.3]} 16. Rab1 {[%clk 0:02:33.3]} 16... Nd8 {[%clk
0:02:06.5]} 17. Bf4 {[%clk 0:02:18.2]} 17... Ne8 {[%clk 0:01:52.2]} 18. Qa3
{[%clk 0:02:13]} 18... Nf7 {[%clk 0:01:42.6]} 19. Nb6 {[%clk 0:01:45.3]} 19...
Rd8 {[%clk 0:01:15.5]} 20. Qxa7 {[%clk 0:01:44.8]} 20... g5 {[%clk 0:01:16.5]}
21. Bg3 {[%clk 0:01:44.7]} 21... h5 {[%clk 0:00:58.8]} 22. h3 {[%clk 0:00:08.7]}
22... Nh6 {[%clk 0:00:47.6]} 23. Nd5 {[%clk 0:00:08.8]} 23... Qe6 {[%clk
0:00:48.7]} 24. Qxb7 {[%clk 0:00:09.4]} 24... Rf7 {[%clk 0:00:39.5]} 25. Qb3
{[%clk 0:00:10.6]} 25... h4 {[%clk 0:00:26.1]} 26. Bh2 {[%clk 0:00:11.6]} 26...
Qg6 {[%clk 0:00:28]} 27. f4 {[%clk 0:00:10.1]} 27... g4 {[%clk 0:00:29]} 28.
hxg4 {[%clk 0:00:09.7]} 28... Nxg4 {[%clk 0:00:28.4]} 29. Rb2 {[%clk 0:00:07.7]}
29... Nxh2 {[%clk 0:00:26.6]} 30. Kxh2 {[%clk 0:00:08.6]} 30... Qg3+ {[%clk
0:00:28.5]} 31. Kh1 {[%clk 0:00:09]} 31... Rh7 {[%clk 0:00:27.9]} 32. Qd1 {[%clk
0:00:03.1]} 32... h3 {[%clk 0:00:26.3]} 33. Kg1 {[%clk 0:00:04.5]} 33... Rdd7
{[%clk 0:00:16.2]} 34. Qe1 {[%clk 0:00:05.7]} 34... Qg4 {[%clk 0:00:15.6]} 35.
g3 {[%clk 0:00:07]} 35... h2+ {[%clk 0:00:16.4]} 36. Kh1 {[%clk 0:00:08.5]}
36... Rdg7 {[%clk 0:00:16.6]} 37. Rg2 {[%clk 0:00:08.8]} 37... Rh3 {[%clk
0:00:16.8]} 38. c4 {[%clk 0:00:07.8]} 38... Ra7 {[%clk 0:00:15.7]} 39. Qb4
{[%clk 0:00:07.8]} 39... Rxg3 {[%clk 0:00:14.7]} 40. Rxh2+ {[%clk 0:00:09.1]}
40... Rh7 {[%clk 0:00:14.1]} 41. Rxh7+ {[%clk 0:00:09.4]} 41... Kxh7 {[%clk
0:00:16]} 42. Qb7+ {[%clk 0:00:05.3]} 42... Kh6 {[%clk 0:00:17.3]} 43. Rf2
{[%clk 0:00:05.6]} 43... Rg1+ {[%clk 0:00:17.2]} 44. Kh2 {[%clk 0:00:06.9]}
44... Qg3# {[%clk 0:00:19.1]} 0-1

[Event "*** Titled Tuesday Blitz AM"]
[Site "Chess.com"]
[Date "2020.01.07"]
[Round "7"]
[White "farzadbfd"]
[Black "CarlosAlbornoz"]
[Result "0-1"]
[WhiteElo "2607"]
[BlackElo "2757"]
[TimeControl "180+2"]
[EndTime "10:35:12 PST"]
[Termination "CarlosAlbornoz won by resignation"]

1. Nf3 {[%clk 0:03:01.9]} 1... Nf6 {[%clk 0:03:00.6]} 2. b3 {[%clk 0:03:02.8]}
2... g6 {[%clk 0:03:02.5]} 3. Bb2 {[%clk 0:03:03.6]} 3... Bg7 {[%clk 0:03:03.5]}
4. g3 {[%clk 0:03:05]} 4... d6 {[%clk 0:03:04.9]} 5. d4 {[%clk 0:03:05.6]} 5...
c5 {[%clk 0:03:06]} 6. c4 {[%clk 0:03:05.7]} 6... Ne4 {[%clk 0:03:01]} 7. Bg2
{[%clk 0:03:03.1]} 7... Qa5+ {[%clk 0:03:00.6]} 8. Nbd2 {[%clk 0:02:51.9]} 8...
Nc6 {[%clk 0:02:51.9]} 9. e3 {[%clk 0:02:13.4]} 9... Bg4 {[%clk 0:02:46.9]} 10.
O-O {[%clk 0:02:08.6]} 10... Nxd2 {[%clk 0:02:41.6]} 11. Qxd2 {[%clk 0:02:09]}
11... Qxd2 {[%clk 0:02:42.5]} 12. Nxd2 {[%clk 0:02:10.9]} 12... cxd4 {[%clk
0:02:43.7]} 13. Bxc6+ {[%clk 0:02:04.5]} 13... bxc6 {[%clk 0:02:44.5]} 14. Bxd4
{[%clk 0:02:06.4]} 14... e5 {[%clk 0:02:42.6]} 15. Bc3 {[%clk 0:02:05.4]} 15...
h5 {[%clk 0:02:41.5]} 16. h4 {[%clk 0:01:55.5]} 16... O-O {[%clk 0:02:40.8]} 17.
f3 {[%clk 0:01:38.9]} 17... Be6 {[%clk 0:02:40.9]} 18. Rfd1 {[%clk 0:01:40.1]}
18... d5 {[%clk 0:02:41.1]} 19. cxd5 {[%clk 0:01:27.9]} 19... cxd5 {[%clk
0:02:43]} 20. Bb4 {[%clk 0:01:26.1]} 20... Rfc8 {[%clk 0:02:39.6]} 21. Rac1
{[%clk 0:01:24.7]} 21... Bh6 {[%clk 0:02:12.4]} 22. Kf2 {[%clk 0:01:24.3]} 22...
Bg7 {[%clk 0:01:58.1]} 23. Bc3 {[%clk 0:01:05.5]} 23... f5 {[%clk 0:01:52.4]}
24. Bb2 {[%clk 0:00:47.4]} 24... Kf7 {[%clk 0:01:46]} 25. f4 {[%clk 0:00:48.7]}
25... exf4 {[%clk 0:01:45.7]} 26. Bxg7 {[%clk 0:00:46.7]} 26... fxg3+ {[%clk
0:01:37.4]} 27. Kxg3 {[%clk 0:00:47.9]} 27... Kxg7 {[%clk 0:01:39.3]} 28. Nf3
{[%clk 0:00:47.8]} 28... f4+ {[%clk 0:01:34.3]} 29. exf4 {[%clk 0:00:43]} 29...
Bg4 {[%clk 0:01:35.2]} 30. Rxc8 {[%clk 0:00:28.4]} 30... Rxc8 {[%clk 0:01:35]}
31. Rd3 {[%clk 0:00:28.6]} 31... Bf5 {[%clk 0:01:36]} 32. Rxd5 {[%clk
0:00:23.3]} 32... Rc3 {[%clk 0:01:36.3]} 33. Kf2 {[%clk 0:00:21]} 33... Kf6
{[%clk 0:01:23.5]} 34. Ra5 {[%clk 0:00:20.4]} 34... Be4 {[%clk 0:01:22.6]} 35.
Ng5 {[%clk 0:00:17.7]} 35... Bc6 {[%clk 0:01:23.2]} 36. Rxa7 {[%clk 0:00:17.6]}
36... Kf5 {[%clk 0:01:23.9]} 37. Rf7+ {[%clk 0:00:11.7]} 37... Kg4 {[%clk
0:01:25]} 38. Ke2 {[%clk 0:00:10.2]} 38... Kxh4 {[%clk 0:01:22.8]} 39. Kd2
{[%clk 0:00:11.7]} 39... Rg3 {[%clk 0:01:17.9]} 40. Rf6 {[%clk 0:00:12.9]} 40...
Be8 {[%clk 0:01:14.2]} 41. Ne6 {[%clk 0:00:06]} 41... Kh3 {[%clk 0:01:10.5]} 42.
Ng7 {[%clk 0:00:06.2]} 42... Bd7 {[%clk 0:01:09.2]} 43. f5 {[%clk 0:00:06.4]}
43... gxf5 {[%clk 0:01:00.2]} 44. Nxh5 {[%clk 0:00:07.6]} 44... Rg2+ {[%clk
0:01:00.9]} 45. Kc3 {[%clk 0:00:07.8]} 45... Kh4 {[%clk 0:00:59.1]} 46. Nf4
{[%clk 0:00:07.2]} 46... Rg3+ {[%clk 0:00:56.6]} 47. Kb2 {[%clk 0:00:06.7]}
47... Kg5 {[%clk 0:00:57.3]} 48. Nd5 {[%clk 0:00:06.9]} 48... Rg2+ {[%clk
0:00:56]} 49. Ka3 {[%clk 0:00:07.9]} 49... Rd2 {[%clk 0:00:55.8]} 50. Rd6 {[%clk
0:00:09.1]} 50... Be8 {[%clk 0:00:57.1]} 51. Rd8 {[%clk 0:00:06.3]} 51... Bf7
{[%clk 0:00:58.1]} 52. Rd7 {[%clk 0:00:03]} 52... Bxd5 {[%clk 0:00:59]} 53. Rg7+
{[%clk 0:00:04.9]} 53... Kf6 {[%clk 0:00:59.6]} 54. Rg1 {[%clk 0:00:06.8]} 54...
f4 {[%clk 0:01:00.4]} 55. Rf1 {[%clk 0:00:07.8]} 55... f3 {[%clk 0:01:01.2]} 56.
Kb4 {[%clk 0:00:08.9]} 56... f2 {[%clk 0:00:59.1]} 57. Kc5 {[%clk 0:00:10.8]}
57... Bg2 {[%clk 0:00:59.7]} 0-1

[Event "*** Titled Tuesday Blitz AM"]
[Site "Chess.com"]
[Date "2020.01.07"]
[Round "7"]
[White "temus_galaktionov"]
[Black "KhazarBabazada"]
[Result "1/2-1/2"]
[WhiteElo "2754"]
[BlackElo "2906"]
[TimeControl "180+2"]
[EndTime "10:35:15 PST"]
[Termination "Game drawn by repetition"]

1. d4 {[%clk 0:03:01.9]} 1... Nf6 {[%clk 0:03:00.3]} 2. Nf3 {[%clk 0:03:01]}
2... g6 {[%clk 0:03:01.9]} 3. c4 {[%clk 0:03:00.4]} 3... Bg7 {[%clk 0:03:02.4]}
4. Nc3 {[%clk 0:03:00.1]} 4... d5 {[%clk 0:03:03.9]} 5. cxd5 {[%clk 0:03:00.2]}
5... Nxd5 {[%clk 0:03:05.8]} 6. e4 {[%clk 0:02:58.9]} 6... Nxc3 {[%clk
0:03:02.9]} 7. bxc3 {[%clk 0:03:00.8]} 7... c5 {[%clk 0:03:02]} 8. Be3 {[%clk
0:03:00.2]} 8... O-O {[%clk 0:03:00]} 9. Qd2 {[%clk 0:02:59.8]} 9... Qa5 {[%clk
0:02:58.5]} 10. Rc1 {[%clk 0:02:57.5]} 10... Bg4 {[%clk 0:02:57.4]} 11. d5
{[%clk 0:02:51.7]} 11... Nd7 {[%clk 0:02:50]} 12. c4 {[%clk 0:02:47.8]} 12...
Qa3 {[%clk 0:02:50.8]} 13. Be2 {[%clk 0:02:43.8]} 13... Rfd8 {[%clk 0:02:45]}
14. O-O {[%clk 0:02:41.9]} 14... b6 {[%clk 0:02:42.4]} 15. h3 {[%clk 0:02:38.9]}
15... Bxf3 {[%clk 0:02:42.7]} 16. Bxf3 {[%clk 0:02:40.3]} 16... Ne5 {[%clk
0:02:44.3]} 17. Be2 {[%clk 0:02:38.6]} 17... Nc6 {[%clk 0:02:43.9]} 18. Bd3
{[%clk 0:02:35.5]} 18... Nb4 {[%clk 0:02:22.7]} 19. Bc2 {[%clk 0:02:34.8]} 19...
Qxa2 {[%clk 0:01:57.5]} 20. Bg5 {[%clk 0:02:30.3]} 20... Re8 {[%clk 0:01:43.4]}
21. Bd1 {[%clk 0:01:54.6]} 21... e6 {[%clk 0:01:34.2]} 22. Qxa2 {[%clk
0:01:49.7]} 22... Nxa2 {[%clk 0:01:33.1]} 23. Rc2 {[%clk 0:01:50.9]} 23... Nb4
{[%clk 0:01:30.3]} 24. Rc1 {[%clk 0:01:48.9]} 24... exd5 {[%clk 0:01:22.1]} 25.
exd5 {[%clk 0:01:50.8]} 25... Bd4 {[%clk 0:01:17.7]} 26. Ba4 {[%clk 0:01:44.1]}
26... Re2 {[%clk 0:01:16.6]} 27. Rcd1 {[%clk 0:01:40.6]} 27... a5 {[%clk
0:01:08.3]} 28. d6 {[%clk 0:01:11.2]} 28... f6 {[%clk 0:01:00.3]} 29. Bf4 {[%clk
0:01:08.4]} 29... Na2 {[%clk 0:00:55.9]} 30. Bc6 {[%clk 0:01:05]} 30... Rd8
{[%clk 0:00:49.8]} 31. d7 {[%clk 0:00:57.1]} 31... Nc3 {[%clk 0:00:49.7]} 32.
Rd3 {[%clk 0:00:51.1]} 32... Re7 {[%clk 0:00:42.3]} 33. Kh1 {[%clk 0:00:47.1]}
33... Rexd7 {[%clk 0:00:42.9]} 34. Bxd7 {[%clk 0:00:45.3]} 34... Rxd7 {[%clk
0:00:44.8]} 35. Be3 {[%clk 0:00:40.4]} 35... Ne4 {[%clk 0:00:43.6]} 36. Rb1
{[%clk 0:00:33.6]} 36... Rd6 {[%clk 0:00:38.1]} 37. Rdb3 {[%clk 0:00:31.3]}
37... Bxe3 {[%clk 0:00:34.6]} 38. fxe3 {[%clk 0:00:29.3]} 38... Kg7 {[%clk
0:00:34.7]} 39. Rxb6 {[%clk 0:00:27.2]} 39... Rd3 {[%clk 0:00:36.2]} 40. R6b3
{[%clk 0:00:25.5]} 40... Rd2 {[%clk 0:00:37.7]} 41. Ra3 {[%clk 0:00:24.5]} 41...
h5 {[%clk 0:00:36.8]} 42. Rxa5 {[%clk 0:00:23.6]} 42... g5 {[%clk 0:00:35]} 43.
Ra7+ {[%clk 0:00:22.4]} 43... Kg6 {[%clk 0:00:34.9]} 44. Re7 {[%clk 0:00:22]}
44... Ng3+ {[%clk 0:00:33.4]} 45. Kh2 {[%clk 0:00:23.3]} 45... Nf5 {[%clk
0:00:32.9]} 46. Re6 {[%clk 0:00:21.1]} 46... Nh4 {[%clk 0:00:34.4]} 47. Rf1
{[%clk 0:00:19.1]} 47... Rxg2+ {[%clk 0:00:35.6]} 48. Kh1 {[%clk 0:00:19.3]}
48... Rg3 {[%clk 0:00:32.3]} 49. Rexf6+ {[%clk 0:00:18.6]} 49... Kg7 {[%clk
0:00:33.4]} 50. Rf7+ {[%clk 0:00:18.4]} 50... Kg8 {[%clk 0:00:34.6]} 51. Rf8+
{[%clk 0:00:15.8]} 51... Kh7 {[%clk 0:00:34.7]} 52. R8f7+ {[%clk 0:00:15.4]}
52... Kg8 {[%clk 0:00:35.7]} 53. Rf8+ {[%clk 0:00:16]} 53... Kg7 {[%clk
0:00:35]} 54. R8f7+ {[%clk 0:00:17.1]} 54... Kg8 {[%clk 0:00:35.5]} 1/2-1/2

[Event "*** Titled Tuesday Blitz AM"]
[Site "Chess.com"]
[Date "2020.01.07"]
[Round "7"]
[White "M1711"]
[Black "WelshTiger"]
[Result "1-0"]
[WhiteElo "2535"]
[BlackElo "2381"]
[TimeControl "180+2"]
[EndTime "10:35:16 PST"]
[Termination "M1711 won by resignation"]

1. e4 {[%clk 0:03:01.9]} 1... c5 {[%clk 0:03:00.3]} 2. Nf3 {[%clk 0:03:01.8]}
2... d6 {[%clk 0:03:00.5]} 3. Bb5+ {[%clk 0:03:00.8]} 3... Bd7 {[%clk
0:03:00.9]} 4. Bxd7+ {[%clk 0:03:01.5]} 4... Qxd7 {[%clk 0:03:02]} 5. c4 {[%clk
0:03:02.3]} 5... g6 {[%clk 0:03:01.8]} 6. d4 {[%clk 0:03:02.6]} 6... cxd4 {[%clk
0:03:02.2]} 7. Nxd4 {[%clk 0:03:04.5]} 7... Bg7 {[%clk 0:03:02.7]} 8. Be3 {[%clk
0:03:04.2]} 8... Nf6 {[%clk 0:03:02.4]} 9. f3 {[%clk 0:03:04]} 9... O-O {[%clk
0:03:03.4]} 10. Nc3 {[%clk 0:03:04.9]} 10... Nc6 {[%clk 0:03:04.7]} 11. Qd2
{[%clk 0:03:05]} 11... Qd8 {[%clk 0:03:00.1]} 12. O-O {[%clk 0:03:03.9]} 12...
Qa5 {[%clk 0:02:57.9]} 13. a3 {[%clk 0:03:01.3]} 13... Rfc8 {[%clk 0:02:57.8]}
14. b4 {[%clk 0:03:01.6]} 14... Qd8 {[%clk 0:02:58.9]} 15. Nd5 {[%clk
0:02:58.8]} 15... Nxd4 {[%clk 0:02:56.4]} 16. Bxd4 {[%clk 0:02:57.4]} 16... Rxc4
{[%clk 0:02:52.7]} 17. Nxf6+ {[%clk 0:02:57.8]} 17... Bxf6 {[%clk 0:02:52.2]}
18. Bxf6 {[%clk 0:02:58.7]} 18... exf6 {[%clk 0:02:53.4]} 19. Rfd1 {[%clk
0:02:57.6]} 19... Qb6+ {[%clk 0:02:51.3]} 20. Kh1 {[%clk 0:02:58.3]} 20... Rd8
{[%clk 0:02:52.2]} 21. h3 {[%clk 0:02:39.2]} 21... Kg7 {[%clk 0:02:52.7]} 22.
Rac1 {[%clk 0:02:36.8]} 22... Rc6 {[%clk 0:02:39.4]} 23. Kh2 {[%clk 0:02:29.5]}
23... Rdc8 {[%clk 0:02:39.5]} 24. Rxc6 {[%clk 0:02:28.4]} 24... Rxc6 {[%clk
0:02:39.6]} 25. Qd5 {[%clk 0:02:29.9]} 25... a6 {[%clk 0:02:37]} 26. h4 {[%clk
0:02:23]} 26... Qe3 {[%clk 0:02:37.1]} 27. Qd2 {[%clk 0:02:20.5]} 27... Qxa3
{[%clk 0:02:35.7]} 28. h5 {[%clk 0:02:17.1]} 28... g5 {[%clk 0:02:25.2]} 29. f4
{[%clk 0:01:44]} 29... Qc3 {[%clk 0:01:30.5]} 30. Qd5 {[%clk 0:00:13.4]} 30...
gxf4 {[%clk 0:01:15.5]} 31. Rd3 {[%clk 0:00:14.5]} 31... Qe5 {[%clk 0:01:14.7]}
32. Qa2 {[%clk 0:00:14.5]} 32... f3+ {[%clk 0:01:13.2]} 33. Kh3 {[%clk
0:00:03.1]} 33... Qxh5+ {[%clk 0:01:01.9]} 34. Kg3 {[%clk 0:00:04.1]} 34... fxg2
{[%clk 0:00:58.3]} 35. Kxg2 {[%clk 0:00:03]} 35... Qg5+ {[%clk 0:00:58.4]} 36.
Rg3 {[%clk 0:00:04.1]} 36... h6 {[%clk 0:00:49.2]} 37. Rxg5+ {[%clk 0:00:05.1]}
37... hxg5 {[%clk 0:00:50.5]} 38. Qd5 {[%clk 0:00:06.6]} 38... Rb6 {[%clk
0:00:47.1]} 39. Qd4 {[%clk 0:00:07.7]} 39... Rc6 {[%clk 0:00:45.7]} 40. Kf3
{[%clk 0:00:09.2]} 40... Kg6 {[%clk 0:00:41.1]} 41. Kg4 {[%clk 0:00:09.1]} 41...
b5 {[%clk 0:00:38.5]} 42. Qd5 {[%clk 0:00:09.6]} 42... Rc4 {[%clk 0:00:38.3]}
43. Kf3 {[%clk 0:00:05.4]} 43... Kg7 {[%clk 0:00:37.7]} 44. Qxd6 {[%clk
0:00:04.6]} 44... Kg6 {[%clk 0:00:31.3]} 45. Qxa6 {[%clk 0:00:03.2]} 45... Rxb4
{[%clk 0:00:31.3]} 46. Qd6 {[%clk 0:00:03.4]} 46... Rc4 {[%clk 0:00:27.8]} 47.
Qb8 {[%clk 0:00:03.6]} 47... Rc5 {[%clk 0:00:21.2]} 48. Qg8+ {[%clk 0:00:04.4]}
48... Kh6 {[%clk 0:00:22.4]} 49. Qf8+ {[%clk 0:00:05.3]} 49... Kg6 {[%clk
0:00:21.9]} 50. Qxc5 {[%clk 0:00:07.2]} 1-0